bitfinex-derivatives/quotes_BTCF0:USTF0_20260127
["timestamp","ask_amount","ask_price","bid_price","bid_amount"]
[1769531544600,0.10152,88768.0,88744.0,0.10152]
[1769531544901,0.10152,88768.0,88744.0,0.10410838]
[1769531545087,0.011278,88760.0,88744.0,0.10410838]
[1769531545486,0.10152,88768.0,88744.0,0.10410838]
[1769531545487,0.011278,88757.0,88744.0,0.10152]
[1769531545893,0.011278,88754.0,88744.0,0.10152]
[1769531546087,0.011278,88754.0,88735.0,0.29716]
[1769531546088,0.011278,88754.0,88736.0,0.10152]
[1769531546299,0.011278,88754.0,88736.0,0.00258838]
[1769531546496,0.10152,88756.0,88735.0,0.10152]
[1769531546692,0.10152,88755.0,88736.0,0.00258838]
[1769531547503,0.011279,88748.0,88736.0,0.00258838]
[1769531547701,0.011279,88752.0,88736.0,0.00258838]
[1769531547898,0.10152,88755.0,88736.0,0.00258838]
[1769531549096,0.308437,88764.0,88736.0,0.00258838]
[1769531549297,0.011277,88763.0,88736.0,0.12258838]
[1769531549606,0.10152,88765.0,88738.0,0.12]
[1769531549795,0.10152,88765.0,88739.0,0.00258838]
[1769531549994,0.10152,88765.0,88745.0,0.011279]
[1769531550194,0.011277,88766.0,88746.0,0.00258838]
[1769531550395,0.011277,88764.0,88746.0,0.00258838]
[1769531550703,0.10152,88764.0,88735.0,0.10152]
[1769531550902,0.011278,88755.0,88736.0,0.00258838]
[1769531551105,0.011278,88756.0,88736.0,0.01386938]
[1769531551303,0.011277,88763.0,88729.0,0.011282]
[1769531551604,0.011279,88753.0,88733.0,0.011281]
[1769531551789,0.06242345,88778.0,88734.0,0.12258838]
[1769531551988,0.011278,88760.0,88741.0,0.01128]
[1769531552190,0.39868,88777.0,88734.0,0.12258838]
[1769531552191,0.10152,88759.0,88743.0,0.01128]
[1769531552390,0.10152,88758.0,88744.0,0.01386838]
[1769531553004,0.10152,88758.0,88744.0,0.00258838]
[1769531554104,0.10152,88762.0,88744.0,0.00258838]
[1769531554700,0.011278,88759.0,88744.0,0.00258838]
[1769531554908,0.011278,88757.0,88739.0,0.10152]
[1769531555101,0.10152,88762.0,88740.0,0.00258838]
[1769531555296,0.10152,88762.0,88739.0,0.10152]
[1769531555906,0.10152,88762.0,88725.0,0.12]
[1769531556104,0.011278,88754.0,88739.0,0.00258838]
[1769531556403,0.29716,88769.0,88739.0,0.00258838]
[1769531556404,0.011277,88765.0,88739.0,0.00258838]
[1769531556609,0.011277,88763.0,88743.0,0.01128]
[1769531556804,0.011277,88763.0,88744.0,0.00258838]
[1769531557005,0.011278,88761.0,88744.0,0.00258838]
[1769531557402,0.10152,88764.0,88732.0,0.12]
[1769531557704,0.10152,88764.0,88710.0,0.10152]
[1769531557705,0.12724059,88730.0,88710.0,0.10152]
[1769531557904,0.11595959,88730.0,88710.0,0.10410838]
[1769531558107,0.01770777,88721.0,88706.0,0.00016989]
[1769531558410,0.01753788,88719.0,88700.0,0.10152]
[1769531558710,0.10152,88718.0,88700.0,0.10152]
[1769531558902,0.10152,88717.0,88700.0,0.10152]
[1769531559102,0.011282,88726.0,88701.0,0.00258838]
[1769531559403,0.112802,88725.0,88701.0,0.00258838]
[1769531559708,0.011282,88723.0,88701.0,0.00258838]
[1769531559907,0.011282,88723.0,88700.0,0.10152]
[1769531560305,0.10152,88724.0,88700.0,0.10410838]
[1769531560500,0.011281,88732.0,88706.0,0.011284]
[1769531560701,0.011282,88726.0,88707.0,0.00258838]
[1769531560897,0.011282,88730.0,88707.0,0.00258838]
[1769531561102,0.39872,88731.0,88707.0,0.01387238]
[1769531561303,0.29716,88730.0,88707.0,0.01387238]
[1769531561514,0.39872,88730.0,88707.0,0.01387238]
[1769531561713,0.011282,88729.0,88707.0,0.00258838]
[1769531562305,0.011282,88725.0,88707.0,0.00258838]
[1769531562507,0.011281,88734.0,88710.0,0.011284]
[1769531562715,0.011281,88732.0,88711.0,0.00258838]
[1769531562912,0.10156,88731.0,88711.0,0.00258838]
[1769531563213,0.011282,88730.0,88711.0,0.00258838]
[1769531564115,0.10156,88739.0,88719.0,0.12]
[1769531564309,0.10156,88744.0,88724.0,0.011282]
[1769531564510,0.10156,88744.0,88725.0,0.00258838]
[1769531565115,0.10156,88744.0,88717.0,0.10156]
[1769531565116,0.011282,88730.0,88717.0,0.10156]
[1769531565419,0.10156,88730.0,88707.0,0.011284]
[1769531565615,0.10156,88730.0,88706.0,0.10414838]
[1769531565616,0.10156,88730.0,88708.0,0.00258838]
[1769531565805,0.10156,88730.0,88708.0,0.01387238]
[1769531566005,0.10156,88730.0,88708.0,0.00258838]
[1769531566609,0.112842,88730.0,88708.0,0.00258838]
[1769531567809,0.10156,88730.0,88708.0,0.00258838]
[1769531568711,0.011282,88726.0,88708.0,0.00258838]
[1769531569016,0.10156,88730.0,88708.0,0.00258838]
[1769531569920,0.011282,88726.0,88708.0,0.00258838]
[1769531570119,0.011283,88722.0,88702.0,0.10156]
[1769531570416,0.39876,88729.0,88703.0,0.00258838]
[1769531570906,0.11595959,88749.0,88716.0,0.12]
[1769531571111,0.23612394,88759.0,88716.0,0.12]
[1769531571112,0.11595959,88740.0,88717.0,0.00258838]
[1769531571316,0.11595959,88740.0,88718.0,0.011283]
[1769531571616,0.10156,88739.0,88719.0,0.00258838]
[1769531571815,0.10156,88739.0,88719.0,0.01387138]
[1769531572212,0.11595959,88732.0,88707.0,0.011284]
[1769531572412,0.11595959,88732.0,88708.0,0.10414838]
[1769531572613,0.11595959,88732.0,88712.0,0.011284]
[1769531572918,0.11595959,88732.0,88714.0,0.011283]
[1769531573117,0.11595959,88732.0,88717.0,0.011283]
[1769531573423,0.11595959,88732.0,88718.0,0.00258838]
[1769531574425,0.11595959,88732.0,88710.0,0.011284]
[1769531574715,0.11595959,88732.0,88711.0,0.00258838]
[1769531575114,0.11120888,88729.0,88711.0,0.00258838]
[1769531575317,0.11120888,88737.0,88712.0,0.011284]
[1769531575518,0.12248988,88736.0,88713.0,0.00258838]
[1769531576509,0.11120888,88733.0,88713.0,0.00258838]
[1769531576915,0.011281,88732.0,88713.0,0.00258838]
[1769531577217,0.11120888,88731.0,88713.0,0.00258838]
[1769531578817,0.011281,88735.0,88713.0,0.00258838]
[1769531579018,0.11120888,88732.0,88713.0,0.00258838]
[1769531579327,0.11120888,88730.0,88713.0,0.00258838]
[1769531581829,0.011279,88749.0,88713.0,0.00258838]
[1769531581830,0.011279,88751.0,88723.0,0.110279]
[1769531582024,0.11120888,88743.0,88724.0,0.10414838]
[1769531582216,0.11120888,88741.0,88724.0,0.10156]
[1769531582422,0.11120888,88736.0,88703.0,0.13210424]
[1769531582634,0.11120888,88734.0,88716.0,0.00086282]
[1769531582820,0.00258838,88734.0,88716.0,0.11114182]
[1769531583026,0.00258838,88734.0,88723.0,0.011282]
[1769531583328,0.00258838,88734.0,88724.0,0.00086282]
[1769531583726,0.00258838,88734.0,88706.0,0.011284]
[1769531583727,0.11120888,88729.0,88698.0,0.26655262]
[1769531583918,0.00258838,88734.0,88706.0,0.00086282]
[1769531583919,0.11120888,88726.0,88706.0,0.00086282]
[1769531584122,0.11379726,88725.0,88710.0,0.011284]
[1769531584330,0.11379726,88725.0,88711.0,0.00086282]
[1769531584525,0.11120888,88734.0,88711.0,0.00086282]
[1769531584833,0.00258838,88725.0,88711.0,0.00086282]
[1769531585126,0.00258838,88725.0,88711.0,0.10242282]
[1769531586519,0.11379726,88725.0,88711.0,0.10242282]
[1769531586726,0.11379726,88725.0,88711.0,0.00086282]
[1769531587433,0.10156,88737.0,88716.0,0.011283]
[1769531587634,0.11379726,88734.0,88705.0,0.13210424]
[1769531587835,0.11120888,88726.0,88709.0,0.011284]
[1769531588042,0.00258838,88725.0,88710.0,0.00086282]
[1769531588335,0.00258838,88725.0,88710.0,0.01214682]
[1769531589333,0.00258838,88725.0,88710.0,0.00086282]
[1769531589734,0.11379726,88725.0,88710.0,0.00086282]
[1769531589937,0.11120888,88720.0,88700.0,0.5]
[1769531590126,0.11120888,88714.0,88700.0,0.50086282]
[1769531590332,0.11379726,88714.0,88700.0,0.50086282]
[1769531591029,0.11120888,88730.0,88701.0,0.110279]
[1769531591337,0.12249088,88724.0,88702.0,0.11114182]
[1769531591646,0.00258838,88724.0,88709.0,0.110279]
[1769531591834,0.11120888,88753.0,88727.0,0.011282]
[1769531592038,0.10466177,88752.0,88729.0,0.110279]
[1769531592232,0.10466177,88751.0,88734.0,0.011281]
[1769531592441,0.00258838,88750.0,88730.0,0.112841]
[1769531592637,0.00258838,88750.0,88731.0,0.00086282]
[1769531592943,0.00258838,88750.0,88723.0,0.110279]
[1769531592944,0.11120888,88747.0,88727.0,0.10156]
[1769531593132,0.11120888,88745.0,88727.0,0.10156]
[1769531593333,0.11120888,88741.0,88715.0,0.110279]
[1769531593529,0.011278,88760.0,88716.0,0.10156]
[1769531593530,0.12248888,88739.0,88716.0,0.10156]
[1769531593733,0.11120888,88737.0,88717.0,0.011283]
[1769531593937,0.00258838,88736.0,88717.0,0.011283]
[1769531594336,0.00258838,88736.0,88716.0,0.10156]
[1769531594529,0.10156,88741.0,88724.0,0.011282]
[1769531594731,0.00258838,88739.0,88724.0,0.011282]
[1769531594944,0.11346234,88753.0,88720.0,0.110279]
[1769531595245,0.01386738,88752.0,88727.0,0.110279]
[1769531595448,0.12248788,88750.0,88728.0,0.10156]
[1769531595632,0.11379726,88749.0,88728.0,0.10156]
[1769531595829,0.011279,88747.0,88728.0,0.10156]
[1769531596029,0.11379726,88746.0,88729.0,0.10156]
[1769531596241,0.11379726,88746.0,88730.0,0.10156]
[1769531597046,0.11120888,88736.0,88713.0,0.011284]
[1769531597234,0.11120888,88734.0,88715.0,0.011283]
[1769531597547,0.00258838,88733.0,88712.0,0.011284]
[1769531598048,0.11379726,88733.0,88712.0,0.011284]
[1769531598242,0.12248988,88732.0,88711.0,0.10156]
[1769531598443,0.11120888,88726.0,88703.0,0.011285]
[1769531598742,0.11120888,88726.0,88700.0,0.38]
[1769531598743,0.11120888,88717.0,88700.0,0.38]
[1769531598948,0.04965798,88715.0,88700.0,0.33034202]
[1769531599145,0.00258838,88714.0,88700.0,0.33034202]
[1769531601049,0.00438805,88714.0,88700.0,0.33034202]
[1769531601253,0.00438805,88714.0,88700.0,0.32854235]
[1769531601254,0.00179967,88713.0,88700.0,0.32854235]
[1769531601447,0.00258838,88712.0,88700.0,0.32854235]
[1769531601648,0.01387238,88712.0,88700.0,0.32854235]
[1769531601848,0.011284,88710.0,88700.0,0.32854235]
[1769531602050,0.00258838,88709.0,88678.0,0.10156]
[1769531602248,0.06267867,88725.0,88694.0,0.011286]
[1769531602451,0.00258838,88709.0,88691.0,0.011286]
[1769531602656,0.10414838,88709.0,88691.0,0.011286]
[1769531602848,0.10414838,88709.0,88693.0,0.011286]
[1769531603048,0.00012922,88708.0,88693.0,0.011286]
[1769531603249,0.00258838,88707.0,88693.0,0.011286]
[1769531603456,0.00258838,88707.0,88690.0,0.011287]
[1769531603652,0.00258838,88707.0,88686.0,0.01127567]
[1769531604250,0.00207871,88706.0,88686.0,0.01127567]
[1769531604456,0.00012922,88708.0,88686.0,0.01127567]
[1769531604457,0.00258838,88705.0,88688.0,0.11930709]
[1769531604647,0.00258838,88705.0,88693.0,0.011286]
[1769531605658,0.00258838,88705.0,88688.0,0.13059409]
[1769531605858,0.00258838,88705.0,88686.0,0.01127567]
[1769531606755,0.00859146,88703.0,88686.0,0.01127567]
[1769531607062,0.00258838,88702.0,88686.0,0.00268421]
[1769531607359,0.00258838,88702.0,88675.0,0.011288]
[1769531607360,0.011286,88698.0,88675.0,0.011288]
[1769531607560,0.011286,88694.0,88673.0,0.00563873]
[1769531607757,0.00258838,88693.0,88673.0,0.00563873]
[1769531607954,0.00012922,88708.0,88683.0,0.11999999]
[1769531608160,0.011285,88704.0,88684.0,0.011287]
[1769531608456,0.01387338,88703.0,88680.0,0.011288]
[1769531608762,0.011285,88701.0,88678.0,0.11999999]
[1769531608945,0.10156,88707.0,88677.0,0.011288]
[1769531608946,0.011285,88699.0,88677.0,0.011288]
[1769531609148,0.00258838,88698.0,88677.0,0.011288]
[1769531609957,0.011286,88695.0,88673.0,0.00563873]
[1769531610161,0.00258838,88694.0,88673.0,0.01692773]
[1769531610458,0.00258838,88694.0,88677.0,0.011288]
[1769531610658,0.01141322,88708.0,88680.0,0.12]
[1769531610857,0.00258838,88700.0,88684.0,0.011287]
[1769531611261,0.00258838,88700.0,88682.0,0.12]
[1769531611455,0.00012922,88708.0,88689.0,0.011287]
[1769531611654,0.10156,88707.0,88690.0,0.00258838]
[1769531612063,0.00012922,88708.0,88691.0,0.011286]
[1769531612264,0.00012922,88708.0,88692.0,0.00258838]
[1769531612652,0.011285,88705.0,88686.0,0.12]
[1769531612854,0.011285,88705.0,88687.0,0.00258838]
[1769531613750,0.011285,88704.0,88687.0,0.00258838]
[1769531614356,0.011285,88702.0,88687.0,0.00258838]
[1769531614969,0.011285,88705.0,88687.0,0.00258838]
[1769531615270,0.011285,88703.0,88687.0,0.00258838]
[1769531615461,0.011285,88701.0,88687.0,0.00258838]
[1769531615666,0.011285,88701.0,88679.0,0.131288]
[1769531615868,0.011285,88701.0,88681.0,0.011288]
[1769531616066,0.00012922,88708.0,88682.0,0.00258838]
[1769531616369,0.011285,88701.0,88682.0,0.00258838]
[1769531616958,0.011285,88704.0,88684.0,0.011287]
[1769531617159,0.011285,88704.0,88685.0,0.00258838]
[1769531617363,0.011283,88721.0,88685.0,0.00258838]
[1769531617364,0.011284,88714.0,88694.0,0.011286]
[1769531617668,0.1016,88713.0,88695.0,0.00258838]
[1769531617869,0.1016,88712.0,88695.0,0.01387438]
[1769531618254,0.011283,88715.0,88695.0,0.01387438]
[1769531618562,0.10165087,88714.0,88695.0,0.00258838]
[1769531618863,0.011284,88713.0,88695.0,0.00258838]
[1769531619066,0.112884,88713.0,88695.0,0.00258838]
[1769531619264,0.108884,88713.0,88695.0,0.00258838]
[1769531621062,0.1016,88713.0,88685.0,0.12]
[1769531621263,0.011285,88702.0,88686.0,0.00258838]
[1769531621570,0.1016,88713.0,88689.0,0.131287]
[1769531621758,0.011284,88710.0,88690.0,0.12258838]
[1769531621955,0.011284,88708.0,88690.0,0.12258838]
[1769531622273,0.1016,88713.0,88690.0,0.12258838]
[1769531622567,0.1016,88713.0,88678.0,0.10156]
[1769531622568,0.011284,88711.0,88678.0,0.10156]
[1769531622865,0.011285,88701.0,88673.0,0.00563873]
[1769531623063,0.011286,88698.0,88673.0,0.00822711]
[1769531623260,0.011287,88688.0,88673.0,0.00822711]
[1769531623456,0.1016,88687.0,88673.0,0.00822711]
[1769531625172,0.011288,88681.0,88666.0,0.01127822]
[1769531625373,5.087e-05,88680.0,88666.0,0.0138666]
[1769531626573,0.011287,88689.0,88666.0,0.1451566]
[1769531626776,0.1016,88688.0,88666.0,0.1451566]
[1769531626969,0.1016,88687.0,88666.0,0.1451566]
[1769531627168,0.1016,88687.0,88666.0,0.1338666]
[1769531628378,0.1016,88687.0,88667.0,0.011289]
[1769531628570,0.1016,88687.0,88668.0,0.12258838]
[1769531629679,0.1016,88687.0,88668.0,0.13387738]
[1769531630576,0.1016,88687.0,88668.0,0.12258838]
[1769531630577,0.011287,88686.0,88668.0,0.12258838]
[1769531630774,0.011288,88682.0,88668.0,0.12258838]
[1769531631670,0.011288,88680.0,88668.0,0.12258838]
[1769531631980,0.011288,88680.0,88666.0,0.01127822]
[1769531632180,0.10780245,88679.0,88666.0,0.0138666]
[1769531632479,0.1016,88687.0,88666.0,0.0138666]
[1769531632480,0.10780245,88678.0,88666.0,0.0138666]
[1769531632781,0.10780245,88677.0,88666.0,0.1451566]
[1769531632965,0.112887,88687.0,88666.0,0.1338666]
[1769531633170,0.10780207,88686.0,88666.0,0.1338666]
[1769531633371,0.10780207,88685.0,88666.0,0.1338666]
[1769531633570,0.011288,88683.0,88666.0,0.1338666]
[1769531633765,0.10780207,88682.0,88666.0,0.1338666]
[1769531633982,0.10780207,88681.0,88666.0,0.1338666]
[1769531634183,0.10780207,88680.0,88666.0,0.1338666]
[1769531634480,0.10780207,88679.0,88666.0,0.1338666]
[1769531634682,0.10780207,88678.0,88666.0,0.1338666]
[1769531634873,0.1016,88687.0,88668.0,0.131289]
[1769531635073,0.10778546,88686.0,88669.0,0.00258838]
[1769531635275,0.10778546,88685.0,88669.0,0.00258838]
[1769531635470,0.10778546,88684.0,88669.0,0.00258838]
[1769531635672,0.10778546,88683.0,88669.0,0.00258838]
[1769531635880,0.10778546,88682.0,88670.0,0.011289]
[1769531636074,0.10778546,88681.0,88671.0,0.00258838]
[1769531636281,0.10778546,88680.0,88671.0,0.00258838]
[1769531636469,0.1016,88687.0,88671.0,0.00258838]
[1769531636674,0.10777438,88686.0,88671.0,0.00258838]
[1769531636878,0.10777438,88685.0,88671.0,0.00258838]
[1769531637082,0.10777438,88684.0,88671.0,0.00258838]
[1769531637285,0.10777438,88683.0,88671.0,0.00258838]
[1769531637475,0.10777438,88682.0,88671.0,0.00258838]
[1769531637675,0.10777438,88681.0,88671.0,0.00258838]
[1769531637876,0.10777518,88680.0,88671.0,0.00258838]
[1769531638175,0.1016,88683.0,88671.0,0.00258838]
[1769531638379,0.10777237,88682.0,88671.0,0.00258838]
[1769531638582,0.10777237,88681.0,88666.0,0.01127822]
[1769531638781,0.10777237,88680.0,88669.0,0.00258838]
[1769531638982,0.1016,88683.0,88669.0,0.00258838]
[1769531639178,0.10777078,88682.0,88669.0,0.00258838]
[1769531639380,0.10777078,88681.0,88670.0,0.011289]
[1769531639585,0.10777078,88680.0,88671.0,0.00258838]
[1769531639879,0.1016,88683.0,88671.0,0.00258838]
[1769531640080,0.20936057,88682.0,88671.0,0.00258838]
[1769531640284,0.10776057,88681.0,88671.0,0.00258838]
[1769531640475,0.1016,88682.0,88671.0,0.00258838]
[1769531640476,0.10776057,88680.0,88671.0,0.01387738]
[1769531640677,0.22484594,88702.0,88671.0,0.12258838]
[1769531640877,0.011286,88695.0,88671.0,0.12258838]
[1769531641076,0.10775555,88694.0,88673.0,0.131289]
[1769531641278,0.10775555,88693.0,88674.0,0.00258838]
[1769531641582,0.10775555,88692.0,88674.0,0.01387738]
[1769531641778,0.39896,88700.0,88674.0,0.00258838]
[1769531641779,0.011287,88689.0,88674.0,0.00258838]
[1769531641982,0.10775555,88688.0,88666.0,0.01127822]
[1769531642177,0.29736,88687.0,88667.0,0.00258838]
[1769531642373,0.011288,88683.0,88667.0,0.00258838]
[1769531643679,0.07191406,88702.0,88678.0,0.131288]
[1769531643885,0.50649309,88701.0,88680.0,0.131288]
[1769531644078,0.39896,88701.0,88681.0,0.12258838]
[1769531644674,0.39896,88701.0,88685.0,0.12]
[1769531644889,0.06334477,88712.0,88689.0,0.12]
[1769531645082,0.5064865,88711.0,88690.0,0.00258838]
[1769531645279,0.011285,88705.0,88678.0,0.112888]
[1769531645581,0.011285,88705.0,88669.0,0.16499262]
[1769531645582,0.11274846,88710.0,88668.0,0.011289]
[1769531645786,0.011287,88686.0,88668.0,0.00258838]
[1769531646091,0.11881378,88709.0,88666.0,0.01127822]
[1769531646092,0.1016,88685.0,88666.0,0.01127822]
[1769531646287,0.011289,88674.0,88666.0,0.01127822]
[1769531646591,0.011289,88672.0,88654.0,0.12794619]
[1769531646775,0.01129,88661.0,88654.0,0.02634619]
[1769531646976,0.01129,88661.0,88646.0,0.01128076]
[1769531647183,0.1016,88662.0,88647.0,0.00258838]
[1769531647380,0.1016,88662.0,88646.0,0.01128076]
[1769531647381,0.01129,88661.0,88646.0,0.01128076]
[1769531647890,9.978e-05,88660.0,88646.0,0.01386914]
[1769531648390,0.1016,88659.0,88646.0,0.01386914]
[1769531648891,0.1016,88659.0,88646.0,0.13386914]
[1769531649187,0.1016,88658.0,88646.0,0.13386914]
[1769531649586,0.1016,88658.0,88646.0,0.01386914]
[1769531649982,0.112891,88658.0,88646.0,0.01386914]
[1769531650182,0.112891,88658.0,88646.0,0.01128076]
[1769531650485,0.011291,88655.0,88646.0,0.01128076]
[1769531650686,0.1016,88658.0,88646.0,0.01128076]
[1769531650887,0.011291,88654.0,88646.0,0.01128076]
[1769531651086,0.011291,88654.0,88633.0,0.00789778]
[1769531651300,0.112891,88658.0,88634.0,0.00258838]
[1769531651594,0.112891,88658.0,88634.0,0.12258838]
[1769531652393,0.112891,88658.0,88635.0,0.131294]
[1769531652592,0.112891,88658.0,88636.0,0.12258838]
[1769531652788,0.1016,88658.0,88637.0,0.011293]
[1769531653097,0.011291,88659.0,88633.0,0.00789778]
[1769531653098,0.01129,88665.0,88642.0,0.12]
[1769531653297,0.39904,88664.0,88644.0,0.12]
[1769531653492,0.01129,88665.0,88646.0,0.12]
[1769531653799,0.011287,88690.0,88654.0,0.12]
[1769531654098,0.011288,88681.0,88657.0,0.011291]
[1769531654298,0.10852585,88680.0,88660.0,0.12]
[1769531654485,0.10164,88680.0,88658.0,0.00258838]
[1769531654795,0.10164,88680.0,88647.0,0.10164]
[1769531655098,0.011289,88668.0,88649.0,0.00258838]
[1769531655294,0.10164,88668.0,88649.0,0.00258838]
[1769531655598,0.39904,88668.0,88647.0,0.10164]
[1769531655798,0.39904,88668.0,88634.0,0.10164]
[1769531655988,0.011291,88655.0,88635.0,0.00258838]
[1769531656190,0.011291,88655.0,88635.0,0.12258838]
[1769531656390,0.10164,88656.0,88635.0,0.13388238]
[1769531657297,0.10164,88656.0,88637.0,0.12]
[1769531657499,0.10164,88656.0,88638.0,0.00258838]
[1769531658701,0.011291,88655.0,88638.0,0.00258838]
[1769531658905,0.10164,88656.0,88638.0,0.00258838]
[1769531659101,0.011291,88652.0,88638.0,0.00258838]
[1769531659301,0.10164,88656.0,88638.0,0.12258838]
[1769531659601,0.10164,88656.0,88638.0,0.00258838]
[1769531660016,0.011291,88653.0,88638.0,0.00258838]
[1769531661305,0.10164,88656.0,88638.0,0.00258838]
[1769531661807,0.011291,88653.0,88633.0,7.8e-07]
[1769531662012,0.011294,88634.0,88633.0,7.8e-07]
[1769531662210,0.112934,88634.0,88608.0,9.499e-05]
[1769531662408,0.011294,88630.0,88608.0,0.01139199]
[1769531662613,0.011295,88628.0,88608.0,0.00268337]
[1769531662810,0.39908,88634.0,88608.0,0.00268337]
[1769531663012,0.39908,88634.0,88611.0,0.011297]
[1769531663210,0.39908,88634.0,88608.0,0.12268337]
[1769531663211,0.29744,88633.0,88616.0,0.131296]
[1769531663416,0.29744,88638.0,88622.0,0.131295]
[1769531663602,0.10164,88637.0,88623.0,0.12258838]
[1769531664312,0.0607579,88656.0,88623.0,0.12258838]
[1769531664617,0.51194861,88655.0,88625.0,0.011295]
[1769531664917,0.011291,88660.0,88626.0,0.00258838]
[1769531664918,0.39912,88654.0,88626.0,0.00258838]
[1769531665108,0.011292,88646.0,88626.0,0.00258838]
[1769531665412,0.011292,88650.0,88627.0,0.131295]
[1769531665602,0.011292,88650.0,88628.0,0.12258838]
[1769531666006,0.39912,88649.0,88628.0,0.12258838]
[1769531666206,0.39912,88648.0,88629.0,0.011294]
[1769531666404,0.10164,88649.0,88634.0,0.12]
[1769531666603,0.011291,88657.0,88636.0,0.12]
[1769531666604,0.10164,88651.0,88636.0,0.12]
[1769531666808,0.10164,88651.0,88637.0,0.00258838]
[1769531667419,0.10164,88652.0,88637.0,0.00258838]
[1769531668421,0.10164,88653.0,88637.0,0.00258838]
[1769531669118,0.01129,88663.0,88640.0,0.011293]
[1769531669325,0.06346454,88666.0,88642.0,0.131293]
[1769531669326,0.39912,88662.0,88642.0,0.131293]
[1769531669621,0.39912,88662.0,88644.0,0.011292]
[1769531669813,0.39912,88662.0,88645.0,0.00258838]
[1769531670407,0.29748,88664.0,88645.0,0.01388038]
[1769531670610,0.10164,88663.0,88645.0,0.00258838]
[1769531671222,0.01129,88665.0,88646.0,0.011292]
[1769531671414,0.01129,88665.0,88647.0,0.00258838]
[1769531671613,0.011289,88668.0,88647.0,0.00258838]
[1769531671814,0.10164,88664.0,88649.0,0.131292]
[1769531672016,0.10164,88664.0,88650.0,0.12258838]
[1769531673319,0.10164,88664.0,88650.0,0.00258838]
[1769531673823,0.01129,88662.0,88643.0,0.10164]
[1769531674016,0.011291,88656.0,88630.0,0.12]
[1769531674224,0.29748,88655.0,88633.0,0.10164]
[1769531674521,0.29748,88655.0,88633.0,0.00258838]
[1769531674818,0.29748,88655.0,88634.0,0.131294]
[1769531675022,0.00563873,88673.0,88636.0,0.12]
[1769531675210,0.01129,88662.0,88641.0,0.12]
[1769531675525,0.11293,88661.0,88642.0,0.00258838]
[1769531675915,0.011291,88658.0,88642.0,0.00258838]
[1769531676115,0.10164,88661.0,88642.0,0.00258838]
[1769531676426,0.10164,88660.0,88646.0,0.011292]
[1769531676624,0.10164,88659.0,88647.0,0.12258838]
[1769531677126,0.10164,88659.0,88639.0,0.10164]
[1769531677321,0.10164,88659.0,88640.0,0.00258838]
[1769531677322,0.112931,88659.0,88640.0,0.00258838]
[1769531677516,0.10164,88659.0,88640.0,0.00258838]
[1769531677724,0.10164,88659.0,88633.0,0.10164]
[1769531678024,0.011292,88648.0,88634.0,0.00258838]
[1769531678329,0.10164,88659.0,88634.0,0.00258838]
[1769531678626,0.011292,88646.0,88634.0,0.00258838]
[1769531679920,0.011292,88647.0,88634.0,0.12258838]
[1769531680114,0.011293,88641.0,88634.0,0.00258838]
[1769531680322,0.002588,88641.0,88620.0,0.12]
[1769531680516,0.011293,88639.0,88628.0,0.0008632]
[1769531680717,0.002588,88638.0,88628.0,0.0008632]
[1769531680913,0.011293,88637.0,88628.0,0.0008632]
[1769531681119,0.002588,88636.0,88628.0,0.0008632]
[1769531681519,0.10164,88648.0,88629.0,0.12]
[1769531681520,0.011292,88646.0,88629.0,0.12]
[1769531681726,0.01388,88646.0,88631.0,0.12]
[1769531681929,0.011292,88644.0,88632.0,0.0008632]
[1769531682231,0.10164,88648.0,88632.0,0.0008632]
[1769531682423,0.10164,88658.0,88639.0,0.12]
[1769531682722,0.011288,88681.0,88647.0,0.12]
[1769531682922,0.011284,88710.0,88634.0,0.308774]
[1769531682923,0.011287,88685.0,88663.0,0.01129]
[1769531683117,0.013875,88685.0,88666.0,0.12]
[1769531683314,0.011288,88682.0,88667.0,0.1208632]
[1769531683623,0.011288,88678.0,88667.0,0.0008632]
[1769531683822,0.002588,88677.0,88667.0,0.0008632]
[1769531684026,0.002588,88676.0,88667.0,0.0008632]
[1769531684327,0.011289,88675.0,88663.0,0.10164]
[1769531684628,0.002588,88674.0,88663.0,0.10164]
[1769531684925,0.002588,88674.0,88663.0,0.1025032]
[1769531685922,0.002588,88674.0,88663.0,0.10164]
[1769531686431,0.013877,88674.0,88663.0,0.10164]
[1769531687025,0.002588,88674.0,88663.0,0.10164]
[1769531687417,0.011289,88673.0,88663.0,0.10164]
[1769531687728,0.011289,88669.0,88655.0,0.10164]
[1769531687922,0.002588,88668.0,88656.0,0.0008632]
[1769531688223,0.011288,88678.0,88657.0,0.12]
[1769531688426,0.002588,88677.0,88659.0,0.12]
[1769531688618,0.10164,88676.0,88660.0,0.1208632]
[1769531688819,0.002588,88675.0,88660.0,0.1208632]
[1769531690120,0.01129,88665.0,88641.0,0.131293]
[1769531690325,0.011289,88669.0,88649.0,0.12]
[1769531690633,0.00258838,88665.0,88649.0,0.12]
[1769531690832,0.01129,88664.0,88649.0,0.12]
[1769531691023,0.00258838,88663.0,88645.0,0.10164]
[1769531691423,0.10422838,88663.0,88628.0,0.12]
[1769531691623,0.011291,88656.0,88635.0,0.131293]
[1769531691817,0.00258838,88655.0,88635.0,0.131293]
[1769531692224,0.00258838,88655.0,88637.0,0.131293]
[1769531692627,0.00258838,88655.0,88639.0,0.011293]
[1769531692823,0.00258838,88655.0,88639.0,0.131293]
[1769531693032,0.00258838,88655.0,88639.0,0.12]
[1769531693422,0.01129,88661.0,88641.0,0.12]
[1769531693628,0.01129,88661.0,88643.0,0.12]
[1769531693824,0.01129,88661.0,88645.0,0.12]
[1769531694029,0.01129,88661.0,88646.0,0.00258838]
[1769531694228,0.011289,88671.0,88649.0,0.12]
[1769531694434,0.011289,88671.0,88651.0,0.12]
[1769531694628,0.011289,88671.0,88653.0,0.12]
[1769531694829,0.011289,88671.0,88654.0,0.00258838]
[1769531695538,0.10164,88672.0,88654.0,0.00258838]
[1769531695729,0.112929,88672.0,88654.0,0.00258838]
[1769531696627,0.10164,88672.0,88654.0,0.00258838]
[1769531696828,0.011289,88671.0,88654.0,0.00258838]
[1769531697137,0.011289,88669.0,88654.0,0.00258838]
[1769531697337,0.10164,88672.0,88654.0,0.00258838]
[1769531698328,0.011289,88670.0,88654.0,0.00258838]
[1769531700036,0.10164,88672.0,88654.0,0.00258838]